[Event "Live Chess"]
[Site "Chess.com"]
[Date "2023.09.16"]
[Round "-"]
[White "isiskrakatoa"]
[Black "advRafael"]
[Result "0-1"]
[WhiteElo "634"]
[BlackElo "1682"]
[TimeControl "900+5"]
[EndTime "17:04:31 PDT"]
[Termination "advRafael venceu por xeque-mate"]

1. e4 {[%clk 0:15:00.7]} 1... e6 {[%clk 0:15:01.3]} 2. Nc3 {[%clk 0:14:57.7]}
2... d5 {[%clk 0:15:04.6]} 3. exd5 {[%clk 0:15:00.1]} 3... exd5 {[%clk
0:15:08.5]} 4. d4 {[%clk 0:14:59.4]} 4... Nf6 {[%clk 0:15:11.8]} 5. Nf3 {[%clk
0:15:02.6]} 5... Be7 {[%clk 0:15:15.3]} 6. Be2 {[%clk 0:14:58.3]} 6... O-O
{[%clk 0:15:18.4]} 7. O-O {[%clk 0:15:01.3]} 7... c6 {[%clk 0:15:21.4]} 8. Bg5
{[%clk 0:15:00.7]} 8... Bf5 {[%clk 0:15:22.6]} 9. Bxf6 {[%clk 0:15:02.8]} 9...
Bxf6 {[%clk 0:15:26]} 10. a4 {[%clk 0:14:41.1]} 10... Nd7 {[%clk 0:15:29.6]} 11.
b4 {[%clk 0:14:44]} 11... Qb6 {[%clk 0:15:28.3]} 12. b5 {[%clk 0:14:46.4]} 12...
c5 {[%clk 0:15:26.6]} 13. Nxd5 {[%clk 0:14:35.4]} 13... Qd6 {[%clk 0:15:29]} 14.
Nxf6+ {[%clk 0:14:36.8]} 14... Nxf6 {[%clk 0:15:30.9]} 15. dxc5 {[%clk
0:14:37.3]} 15... Qxc5 {[%clk 0:15:33.8]} 16. c4 {[%clk 0:14:30.3]} 16... Rfd8
{[%clk 0:15:29.9]} 17. Qb3 {[%clk 0:14:09.5]} 17... Ne4 {[%clk 0:15:22.8]} 18.
Qe3 {[%clk 0:14:11.3]} 18... Qxe3 {[%clk 0:14:57.5]} 19. fxe3 {[%clk 0:14:13.1]}
19... Be6 {[%clk 0:14:55.8]} 20. Bd3 {[%clk 0:14:02.8]} 20... Nc5 {[%clk
0:14:54.8]} 21. Rad1 {[%clk 0:14:01.2]} 21... Nxa4 {[%clk 0:14:54.6]} 22. Nd4
{[%clk 0:13:59.4]} 22... Bg4 {[%clk 0:14:40.6]} 23. Be4 {[%clk 0:13:56.5]} 23...
Bxd1 {[%clk 0:14:40.9]} 24. Rxd1 {[%clk 0:13:59.9]} 24... Nc3 {[%clk 0:14:43.4]}
25. Bxb7 {[%clk 0:14:03.4]} 25... Nxd1 {[%clk 0:14:46.2]} 26. Bxa8 {[%clk
0:14:07.5]} 26... Rxa8 {[%clk 0:14:49.4]} 27. c5 {[%clk 0:14:05]} 27... Nxe3
{[%clk 0:14:51.6]} 28. c6 {[%clk 0:14:05.4]} 28... Nd5 {[%clk 0:14:54.2]} 29.
Nf5 {[%clk 0:13:51.1]} 29... Rb8 {[%clk 0:14:54.3]} 30. Nd6 {[%clk 0:13:53]}
30... Kf8 {[%clk 0:14:44.8]} 31. g4 {[%clk 0:13:52.7]} 31... Ke7 {[%clk
0:14:48]} 32. Nf5+ {[%clk 0:13:37.8]} 32... Kf6 {[%clk 0:14:47.5]} 33. h4 {[%clk
0:13:31.1]} 33... Rxb5 {[%clk 0:14:45.5]} 34. h5 {[%clk 0:13:24.2]} 34... Nc7
{[%clk 0:14:43.1]} 35. Nd6 {[%clk 0:13:12.1]} 35... Rb6 {[%clk 0:14:32.6]} 36.
Ne4+ {[%clk 0:13:02.8]} 36... Ke7 {[%clk 0:14:36.2]} 37. g5 {[%clk 0:13:02.9]}
37... Rxc6 {[%clk 0:14:35.3]} 38. g6 {[%clk 0:13:06.5]} 38... fxg6 {[%clk
0:14:38.3]} 39. hxg6 {[%clk 0:13:09.5]} 39... hxg6 {[%clk 0:14:41.4]} 40. Ng5
{[%clk 0:13:07.5]} 40... a5 {[%clk 0:14:43.5]} 41. Ne4 {[%clk 0:13:10.8]} 41...
Rc2 {[%clk 0:14:43.3]} 42. Kf1 {[%clk 0:13:07.1]} 42... a4 {[%clk 0:14:47.1]}
43. Ke1 {[%clk 0:13:11.5]} 43... a3 {[%clk 0:14:51.3]} 44. Kd1 {[%clk
0:13:16.1]} 44... Rh2 {[%clk 0:14:53.8]} 45. Kc1 {[%clk 0:13:16]} 45... a2
{[%clk 0:14:56.8]} 46. Ng5 {[%clk 0:13:10.7]} 46... a1=Q# {[%clk 0:14:59.4]} 0-1

[Event "Live Chess"]
[Site "Chess.com"]
[Date "2023.09.16"]
[Round "-"]
[White "generalhuxx99silva"]
[Black "MatheusMPD"]
[Result "1-0"]
[WhiteElo "1542"]
[BlackElo "1589"]
[TimeControl "900+5"]
[EndTime "17:08:01 PDT"]
[Termination "generalhuxx99silva venceu por desistência"]

1. c4 {[%clk 0:15:02.4]} 1... c5 {[%clk 0:14:58.2]} 2. Nf3 {[%clk 0:15:05.4]}
2... Nf6 {[%clk 0:14:59.6]} 3. Nc3 {[%clk 0:15:07.3]} 3... d5 {[%clk 0:15:01]}
4. cxd5 {[%clk 0:15:06.8]} 4... Nxd5 {[%clk 0:15:05.2]} 5. Nxd5 {[%clk
0:15:08.6]} 5... Qxd5 {[%clk 0:15:09.1]} 6. g3 {[%clk 0:15:08.3]} 6... Nc6
{[%clk 0:15:02.7]} 7. Bg2 {[%clk 0:15:10.1]} 7... Qd7 {[%clk 0:15:02.5]} 8. a4
{[%clk 0:15:05.2]} 8... g6 {[%clk 0:15:00]} 9. O-O {[%clk 0:15:04]} 9... Bg7
{[%clk 0:15:04.5]} 10. a5 {[%clk 0:14:58.1]} 10... a6 {[%clk 0:14:38.4]} 11. Re1
{[%clk 0:14:47.2]} 11... O-O {[%clk 0:14:39.3]} 12. d3 {[%clk 0:14:31.3]} 12...
Qc7 {[%clk 0:14:16.7]} 13. Bf4 {[%clk 0:14:26.5]} 13... e5 {[%clk 0:14:15.9]}
14. Bd2 {[%clk 0:14:19.9]} 14... Re8 {[%clk 0:13:27.2]} 15. h4 {[%clk
0:14:09.6]} 15... Bf5 {[%clk 0:13:09.2]} 16. Ng5 {[%clk 0:13:58.3]} 16... h6
{[%clk 0:13:01.3]} 17. Ne4 {[%clk 0:13:55.2]} 17... b6 {[%clk 0:12:14.7]} 18.
axb6 {[%clk 0:13:48.1]} 18... Qxb6 {[%clk 0:12:18]} 19. Nd6 {[%clk 0:13:51.2]}
19... Red8 {[%clk 0:11:52.2]} 20. Nxf5 {[%clk 0:13:47.7]} 20... gxf5 {[%clk
0:11:57.1]} 21. Qc1 {[%clk 0:13:42]} 21... Nd4 {[%clk 0:11:42.3]} 22. Ba5 {[%clk
0:13:26.3]} 22... Qb5 {[%clk 0:11:12.1]} 23. Bxd8 {[%clk 0:13:27.9]} 23... Rxd8
{[%clk 0:10:42.5]} 24. Qc3 {[%clk 0:12:52.9]} 24... e4 {[%clk 0:10:15]} 25. Qa5
{[%clk 0:12:39.9]} 25... Rb8 {[%clk 0:06:54.8]} 26. Qxa6 {[%clk 0:12:37.5]}
26... Nc2 {[%clk 0:06:50.3]} 27. Qxb5 {[%clk 0:12:35.1]} 27... Rxb5 {[%clk
0:06:52.9]} 28. Ra8+ {[%clk 0:12:34.1]} 28... Kh7 {[%clk 0:06:55.4]} 29. Rc1
{[%clk 0:12:25.9]} 29... Nd4 {[%clk 0:06:54]} 30. Bh3 {[%clk 0:11:52.3]} 30...
Kg6 {[%clk 0:06:31.3]} 31. Kg2 {[%clk 0:11:36.1]} 31... Nxe2 {[%clk 0:06:05.8]}
32. Ra6+ {[%clk 0:11:35.8]} 32... Bf6 {[%clk 0:05:52]} 33. h5+ {[%clk 0:10:58]}
33... Kg5 {[%clk 0:05:47.1]} 34. Rc4 {[%clk 0:10:42.6]} 34... Rxb2 {[%clk
0:02:48.9]} 35. Rxc5 {[%clk 0:10:35.3]} 35... Nxg3 {[%clk 0:01:47.9]} 36. Kxg3
{[%clk 0:10:34.3]} 36... Kxh5 {[%clk 0:01:44.9]} 37. Rxf5+ {[%clk 0:10:29.4]}
37... Kg6 {[%clk 0:01:48.8]} 38. Raxf6+ {[%clk 0:10:32.8]} 1-0

[Event "Live Chess"]
[Site "Chess.com"]
[Date "2023.09.16"]
[Round "-"]
[White "Ilisunesp"]
[Black "isiskrakatoa"]
[Result "1-0"]
[WhiteElo "1545"]
[BlackElo "634"]
[TimeControl "900+5"]
[EndTime "17:09:15 PDT"]
[Termination "Ilisunesp venceu por xeque-mate"]

1. e4 {[%clk 0:15:00.2]} 1... e5 {[%clk 0:15:03.7]} 2. Nf3 {[%clk 0:15:04.5]}
2... Nf6 {[%clk 0:15:00.6]} 3. Bc4 {[%clk 0:15:09]} 3... Nxe4 {[%clk 0:15:04.3]}
4. Nxe5 {[%clk 0:15:12.8]} 4... Nf6 {[%clk 0:15:05.1]} 5. Bxf7+ {[%clk
0:15:15.2]} 5... Ke7 {[%clk 0:15:05.5]} 6. Nc3 {[%clk 0:15:18]} 6... d6 {[%clk
0:15:03.7]} 7. Nd5+ {[%clk 0:14:28.6]} 7... Nxd5 {[%clk 0:15:04.5]} 8. Bxd5
{[%clk 0:14:33.2]} 8... dxe5 {[%clk 0:15:07.6]} 9. Qf3 {[%clk 0:14:36.1]} 9...
c6 {[%clk 0:15:09.5]} 10. Bb3 {[%clk 0:14:08.3]} 10... Be6 {[%clk 0:15:07.1]}
11. Bxe6 {[%clk 0:14:11.4]} 11... Kxe6 {[%clk 0:15:10.2]} 12. d3 {[%clk
0:14:16.3]} 12... Ke7 {[%clk 0:15:12.9]} 13. Bg5+ {[%clk 0:14:19.4]} 13... Ke8
{[%clk 0:14:57.8]} 14. Bxd8 {[%clk 0:14:23]} 14... Kxd8 {[%clk 0:15:01.4]} 15.
O-O {[%clk 0:14:26.4]} 15... Bc5 {[%clk 0:14:55]} 16. Rfe1 {[%clk 0:14:30]}
16... Bd4 {[%clk 0:14:58]} 17. c3 {[%clk 0:14:33.5]} 17... Bxf2+ {[%clk
0:14:53]} 18. Qxf2 {[%clk 0:14:37.2]} 18... Nd7 {[%clk 0:14:52.9]} 19. Qh4+
{[%clk 0:14:39.8]} 19... Kc7 {[%clk 0:14:49.8]} 20. Rf1 {[%clk 0:14:43]} 20...
Nc5 {[%clk 0:14:50.9]} 21. Rf7+ {[%clk 0:14:47.4]} 21... Kb6 {[%clk 0:14:48.3]}
22. Qb4+ {[%clk 0:14:51.4]} 22... Ka6 {[%clk 0:14:42.3]} 23. Qxc5 {[%clk
0:14:55.5]} 23... b6 {[%clk 0:14:43.6]} 24. Qxc6 {[%clk 0:14:57.1]} 24... Rac8
{[%clk 0:14:43]} 25. Qa4# {[%clk 0:15:01.1]} 1-0

[Event "Live Chess"]
[Site "Chess.com"]
[Date "2023.09.16"]
[Round "-"]
[White "mariabeatrizandrade"]
[Black "felipeurbano"]
[Result "0-1"]
[WhiteElo "676"]
[BlackElo "1146"]
[TimeControl "900+5"]
[EndTime "17:10:42 PDT"]
[Termination "felipeurbano venceu por xeque-mate"]

1. e4 {[%clk 0:15:02.8]} 1... e5 {[%clk 0:15:03.4]} 2. Nf3 {[%clk 0:15:06.8]}
2... Nc6 {[%clk 0:15:03.7]} 3. d4 {[%clk 0:15:10.8]} 3... exd4 {[%clk
0:14:59.6]} 4. Nxd4 {[%clk 0:15:14.2]} 4... d6 {[%clk 0:14:56.4]} 5. Nc3 {[%clk
0:15:14.8]} 5... Bd7 {[%clk 0:14:43.2]} 6. Bd2 {[%clk 0:15:12.1]} 6... Nxd4
{[%clk 0:14:44.8]} 7. Be3 {[%clk 0:15:09.5]} 7... Nc6 {[%clk 0:14:42.3]} 8. Bd3
{[%clk 0:15:11]} 8... Nf6 {[%clk 0:14:42.2]} 9. Nd5 {[%clk 0:15:10.9]} 9... Nxd5
{[%clk 0:14:20.8]} 10. exd5 {[%clk 0:15:12.9]} 10... Ne5 {[%clk 0:14:21.9]} 11.
O-O {[%clk 0:15:07.8]} 11... Qh4 {[%clk 0:14:08.2]} 12. g3 {[%clk 0:14:19.5]}
12... Qh3 {[%clk 0:14:03.8]} 13. f4 {[%clk 0:14:18.5]} 13... Ng4 {[%clk
0:14:03.8]} 14. Qd2 {[%clk 0:14:09.4]} 14... O-O-O {[%clk 0:13:50.5]} 15. Bxa7
{[%clk 0:14:07.8]} 15... Re8 {[%clk 0:13:28.3]} 16. Rf2 {[%clk 0:14:07.7]} 16...
Nxf2 {[%clk 0:13:19.2]} 17. Qxf2 {[%clk 0:14:08.4]} 17... Be7 {[%clk 0:13:08.1]}
18. Qd4 {[%clk 0:14:00.7]} 18... Bf6 {[%clk 0:13:02.5]} 19. Qc4 {[%clk
0:13:56.7]} 19... Kd8 {[%clk 0:12:48.2]} 20. Bb8 {[%clk 0:13:17.3]} 20... c6
{[%clk 0:12:38.7]} 21. dxc6 {[%clk 0:12:59.5]} 21... Bxc6 {[%clk 0:12:40.8]} 22.
Qxf7 {[%clk 0:12:57.8]} 22... Qg2# {[%clk 0:12:40.8]} 0-1

[Event "Live Chess"]
[Site "Chess.com"]
[Date "2023.09.16"]
[Round "-"]
[White "isiskrakatoa"]
[Black "generalhuxx99silva"]
[Result "0-1"]
[WhiteElo "634"]
[BlackElo "1542"]
[TimeControl "900+5"]
[EndTime "17:13:15 PDT"]
[Termination "generalhuxx99silva venceu por xeque-mate"]

1. e4 {[%clk 0:14:57.7]} 1... e6 {[%clk 0:15:04.9]} 2. Nf3 {[%clk 0:14:55.8]}
2... d5 {[%clk 0:15:09]} 3. e5 {[%clk 0:14:56.9]} 3... c5 {[%clk 0:15:12]} 4. d4
{[%clk 0:14:59.4]} 4... Nc6 {[%clk 0:15:15]} 5. dxc5 {[%clk 0:15:02.5]} 5...
Bxc5 {[%clk 0:15:15.6]} 6. Be3 {[%clk 0:15:05.4]} 6... f6 {[%clk 0:15:14.2]} 7.
Bxc5 {[%clk 0:15:08.1]} 7... Qa5+ {[%clk 0:14:52.2]} 8. c3 {[%clk 0:14:48.2]}
8... Qxc5 {[%clk 0:14:50.6]} 9. exf6 {[%clk 0:14:51.6]} 9... Nxf6 {[%clk
0:14:50.8]} 10. Nd4 {[%clk 0:14:50.5]} 10... Nxd4 {[%clk 0:14:50.9]} 11. cxd4
{[%clk 0:14:53.7]} 11... Qa5+ {[%clk 0:14:43.5]} 12. Nd2 {[%clk 0:14:52]} 12...
O-O {[%clk 0:14:43.3]} 13. a3 {[%clk 0:14:48.5]} 13... e5 {[%clk 0:14:36.8]} 14.
b4 {[%clk 0:14:48.1]} 14... Qc7 {[%clk 0:14:24.3]} 15. dxe5 {[%clk 0:14:49.7]}
15... Qxe5+ {[%clk 0:14:19.3]} 16. Be2 {[%clk 0:14:43]} 16... Ng4 {[%clk
0:14:19]} 17. O-O {[%clk 0:14:44.4]} 17... Qxh2# {[%clk 0:14:15]} 0-1

[Event "Live Chess"]
[Site "Chess.com"]
[Date "2023.09.16"]
[Round "-"]
[White "L_lawliet_03"]
[Black "ppsobral"]
[Result "0-1"]
[WhiteElo "1532"]
[BlackElo "1062"]
[TimeControl "900+5"]
[EndTime "17:14:06 PDT"]
[Termination "ppsobral venceu por xeque-mate"]

1. d4 {[%clk 0:14:59.2]} 1... Nf6 {[%clk 0:15:00.8]} 2. c4 {[%clk 0:14:59]} 2...
d6 {[%clk 0:15:02.8]} 3. Nc3 {[%clk 0:14:59.3]} 3... g6 {[%clk 0:15:04]} 4. e4
{[%clk 0:14:58.5]} 4... Bg7 {[%clk 0:15:03]} 5. Nf3 {[%clk 0:14:56.2]} 5... O-O
{[%clk 0:14:53.5]} 6. Be2 {[%clk 0:14:57.4]} 6... Re8 {[%clk 0:14:42.8]} 7. Bd3
{[%clk 0:14:27.4]} 7... e5 {[%clk 0:14:31.7]} 8. O-O {[%clk 0:14:29.2]} 8...
exd4 {[%clk 0:14:15]} 9. Nxd4 {[%clk 0:14:31.9]} 9... Nfd7 {[%clk 0:13:17.4]}
10. Nf3 {[%clk 0:14:24.5]} 10... Nc5 {[%clk 0:13:04.5]} 11. Re1 {[%clk
0:14:10.9]} 11... Nxd3 {[%clk 0:12:36.5]} 12. Qxd3 {[%clk 0:14:15.8]} 12... Nd7
{[%clk 0:12:08.4]} 13. b4 {[%clk 0:14:09.2]} 13... a5 {[%clk 0:12:02.9]} 14.
bxa5 {[%clk 0:13:51.3]} 14... Rxa5 {[%clk 0:12:01]} 15. Bd2 {[%clk 0:13:46.1]}
15... Nc5 {[%clk 0:11:58.9]} 16. Qc2 {[%clk 0:13:28.3]} 16... b6 {[%clk
0:11:00.8]} 17. Nd5 {[%clk 0:11:05.2]} 17... Bxa1 {[%clk 0:10:49.5]} 18. Bxa5
{[%clk 0:11:08]} 18... bxa5 {[%clk 0:10:28.2]} 19. Rxa1 {[%clk 0:11:09.2]} 19...
Rxe4 {[%clk 0:09:56.1]} 20. Re1 {[%clk 0:11:01.7]} 20... Bf5 {[%clk 0:09:14.9]}
21. Rxe4 {[%clk 0:10:41.1]} 21... Bxe4 {[%clk 0:09:15.5]} 22. Qc3 {[%clk
0:10:31.2]} 22... Bxd5 {[%clk 0:08:04]} 23. cxd5 {[%clk 0:10:30.8]} 23... a4
{[%clk 0:07:58.2]} 24. Nd4 {[%clk 0:10:28.2]} 24... Qf6 {[%clk 0:07:37.8]} 25.
Qe3 {[%clk 0:10:14]} 25... Kg7 {[%clk 0:06:14.4]} 26. h3 {[%clk 0:09:54.7]}
26... h5 {[%clk 0:06:00.4]} 27. Nc6 {[%clk 0:09:43.5]} 27... Qa1+ {[%clk
0:05:24.6]} 28. Kh2 {[%clk 0:09:45.2]} 28... Qxa2 {[%clk 0:05:19.2]} 29. Qc3+
{[%clk 0:09:30.5]} 29... Kh7 {[%clk 0:05:08]} 30. Qf6 {[%clk 0:09:30.7]} 30...
Qxd5 {[%clk 0:04:58.9]} 31. Ne7 {[%clk 0:09:28.6]} 31... Ne4 {[%clk 0:04:24.6]}
32. Nxd5 {[%clk 0:09:24]} 32... Nxf6 {[%clk 0:04:25.9]} 33. Nxf6+ {[%clk
0:09:27.6]} 33... Kg7 {[%clk 0:04:26.2]} 34. Nd5 {[%clk 0:09:31.2]} 34... a3
{[%clk 0:04:27.4]} 35. Nc3 {[%clk 0:09:29.6]} 35... Kf6 {[%clk 0:04:28.5]} 36.
Kg3 {[%clk 0:09:32.2]} 36... Ke5 {[%clk 0:04:31.8]} 37. Kf3 {[%clk 0:09:36.2]}
37... Kd4 {[%clk 0:04:35.1]} 38. Na2 {[%clk 0:09:37.7]} 38... Kd3 {[%clk
0:04:33.1]} 39. g4 {[%clk 0:09:29.2]} 39... hxg4+ {[%clk 0:04:24.9]} 40. hxg4
{[%clk 0:09:31.6]} 40... c5 {[%clk 0:04:21.5]} 41. Nc1+ {[%clk 0:09:15.2]} 41...
Kc2 {[%clk 0:04:11.4]} 42. Na2 {[%clk 0:07:57.3]} 42... Kb2 {[%clk 0:04:08.6]}
43. Kf4 {[%clk 0:07:43]} 43... Kxa2 {[%clk 0:04:09]} 44. Kg5 {[%clk 0:07:47.1]}
44... Kb3 {[%clk 0:04:10.4]} 45. Kf6 {[%clk 0:07:50.7]} 45... a2 {[%clk
0:04:13.3]} 46. Kxf7 {[%clk 0:07:54.9]} 46... a1=Q {[%clk 0:04:16.6]} 47. Kxg6
{[%clk 0:07:58.9]} 47... Qb1+ {[%clk 0:04:14.2]} 48. Kg5 {[%clk 0:08:02.2]}
48... d5 {[%clk 0:04:06.6]} 49. f4 {[%clk 0:08:04.8]} 49... d4 {[%clk 0:04:01]}
50. f5 {[%clk 0:08:08.9]} 50... d3 {[%clk 0:04:03.4]} 51. f6 {[%clk 0:08:13]}
51... Qc1+ {[%clk 0:04:00.6]} 52. Kg6 {[%clk 0:08:14.5]} 52... Qc2 {[%clk
0:03:53.4]} 53. Kg7 {[%clk 0:08:17.8]} 53... d2 {[%clk 0:03:43.1]} 54. f7 {[%clk
0:08:19.2]} 54... Qc3+ {[%clk 0:03:25.4]} 55. Kg6 {[%clk 0:08:07.6]} 55... Qd3+
{[%clk 0:03:14.1]} 56. Kg7 {[%clk 0:07:58.9]} 56... Qd4+ {[%clk 0:03:15]} 57.
Kg6 {[%clk 0:08:02.3]} 57... Qxg4+ {[%clk 0:03:13.9]} 58. Kf6 {[%clk 0:07:59.4]}
58... Qf4+ {[%clk 0:03:12.9]} 59. Ke7 {[%clk 0:08:03]} 59... Qxf7+ {[%clk
0:03:15.5]} 60. Kxf7 {[%clk 0:08:06.8]} 60... d1=Q {[%clk 0:03:18.9]} 61. Ke6
{[%clk 0:08:10.4]} 61... c4 {[%clk 0:03:22.6]} 62. Kf5 {[%clk 0:08:13.2]} 62...
c3 {[%clk 0:03:26.1]} 63. Kf4 {[%clk 0:08:16.7]} 63... c2 {[%clk 0:03:30.1]} 64.
Ke4 {[%clk 0:08:16.2]} 64... c1=Q {[%clk 0:03:35]} 65. Kf5 {[%clk 0:08:18.7]}
65... Qe3 {[%clk 0:03:34.3]} 66. Kg6 {[%clk 0:08:15.5]} 66... Qdf3 {[%clk
0:03:32.4]} 67. Kh7 {[%clk 0:08:13.9]} 67... Qg5 {[%clk 0:03:28.9]} 68. Kh8
{[%clk 0:08:14.4]} 68... Qh3# {[%clk 0:03:33.8]} 0-1